bitfinex/quotes_BTCUSD_20250901
["timestamp","ask_amount","ask_price","bid_price","bid_amount"]
[1756709889045,0.89867078,108200.0,108190.0,0.18533636]
[1756709892838,0.89867078,108200.0,108190.0,0.0004764]
[1756709893249,0.89867078,108200.0,108190.0,0.18533636]
[1756709895437,0.89867078,108200.0,108190.0,0.0004764]
[1756709895637,0.89867078,108200.0,108190.0,0.18533636]
[1756709896193,0.89867078,108200.0,108190.0,0.0004764]
[1756709896559,0.89867078,108200.0,108190.0,0.18533636]
[1756709897969,0.89867078,108200.0,108190.0,0.0004764]
[1756709898405,0.89867078,108200.0,108190.0,0.18533636]
[1756709898835,1.23132227,108200.0,108190.0,0.0004764]
[1756709902137,1.07604227,108200.0,108190.0,0.0004764]
[1756709902340,0.56597929,108200.0,108190.0,0.18533636]
[1756709902539,0.89863078,108200.0,108190.0,0.0004764]
[1756709902962,1.23128227,108200.0,108190.0,0.0004764]
[1756709906971,0.41073929,108200.0,108190.0,0.0004764]
[1756709907197,0.56593929,108200.0,108190.0,0.18533636]
[1756709907382,0.89859078,108200.0,108190.0,0.18533636]
[1756709907604,1.23124227,108200.0,108190.0,0.0004764]
[1756709908646,0.89859078,108200.0,108190.0,0.0004764]
[1756709909598,1.23124227,108200.0,108190.0,0.0004764]
[1756709910202,1.23124227,108200.0,108190.0,0.0005164]
[1756709911221,0.89859078,108200.0,108190.0,0.0005164]
[1756709912007,0.55677371,108200.0,108190.0,0.18537636]
[1756709912217,0.8894252,108200.0,108190.0,0.18537636]
[1756709913562,0.8183852,108200.0,108190.0,0.18537636]
[1756709913765,0.80262852,108200.0,108190.0,0.18537636]
[1756709915018,0.80262852,108200.0,108190.0,0.0005164]
[1756709919245,1.13528001,108200.0,108190.0,0.0005164]
[1756709919865,0.46997703,108200.0,108190.0,0.0005164]
[1756709920070,0.80262852,108200.0,108190.0,0.0005164]
[1756709925967,0.46997703,108200.0,108190.0,0.18537636]
[1756709926169,1.13528001,108200.0,108190.0,0.18537636]
[1756709926764,1.13524001,108200.0,108190.0,0.18537636]
[1756709929386,0.46993703,108200.0,108190.0,0.18537636]
[1756709929614,1.13524001,108200.0,108190.0,0.18537636]
[1756709930026,0.8871,108200.0,108190.0,0.18537636]
[1756709930238,1.03024468,108200.0,108190.0,0.18537636]
[1756709931424,1.02624468,108200.0,108190.0,0.18537636]
[1756709931624,1.02824468,108200.0,108190.0,0.18537636]
[1756709931825,0.8454018,108200.0,108190.0,0.18537636]
[1756709932032,0.8434018,108200.0,108190.0,0.18537636]
[1756709932294,0.8414018,108200.0,108190.0,0.18537636]
[1756709932476,1.02724468,108200.0,108190.0,0.18537636]
[1756709932767,1.02824468,108200.0,108190.0,0.18537636]
[1756709934764,0.87308468,108200.0,108190.0,0.18537636]
[1756709934999,1.02820468,108200.0,108190.0,0.18537636]
[1756709935149,0.87308468,108200.0,108190.0,0.18537636]
[1756709935353,1.02820468,108200.0,108190.0,0.18537636]
[1756709939626,0.87308468,108200.0,108190.0,0.18537636]
[1756709939835,1.02820468,108200.0,108190.0,0.18537636]
[1756709940036,0.33465149,108200.0,108190.0,0.18537636]
[1756709940244,0.48977149,108200.0,108190.0,0.18537636]
[1756709943016,0.002,108200.0,108190.0,0.18537636]
[1756709943252,0.48977149,108200.0,108190.0,0.18537636]
[1756709953130,0.82242298,108200.0,108190.0,0.18537636]
[1756709956429,1.00726586,108200.0,108190.0,0.18537636]
[1756709959484,0.82242298,108200.0,108190.0,0.18537636]
[1756709960124,1.02820468,108200.0,108190.0,0.0005164]
[1756709960330,1.36085617,108200.0,108190.0,0.0005164]
[1756709960506,1.38862817,108200.0,108190.0,0.0005164]
[1756709960911,1.05597668,108200.0,108190.0,0.0005164]
[1756709962029,0.90085668,108200.0,108190.0,0.0005164]
[1756709962241,0.90085668,108200.0,108190.0,0.18537636]
[1756709962484,1.05589668,108200.0,108190.0,0.18537636]
[1756709963598,0.90085668,108200.0,108190.0,0.18537636]
[1756709963817,1.05589668,108200.0,108190.0,0.18537636]
[1756709964901,0.90085668,108200.0,108190.0,0.18537636]
[1756709965086,1.05589668,108200.0,108190.0,0.18537636]
[1756709967758,0.3905937,108200.0,108190.0,0.18537636]
[1756709967960,1.05589668,108200.0,108190.0,0.18537636]
[1756709968705,1.05589668,108200.0,108190.0,0.0005164]
[1756709969372,1.05589668,108200.0,108190.0,0.18537636]
[1756709969557,1.05589668,108200.0,108190.0,0.0005164]
[1756709970070,1.05589668,108200.0,108190.0,0.18537636]
[1756709973209,0.05071082,108200.0,108190.0,0.18537636]
[1756709973453,1.05589668,108200.0,108190.0,0.18537636]
[1756709976448,1.05589668,108200.0,108190.0,0.0005164]
[1756709977456,1.05589668,108200.0,108190.0,0.18537636]
[1756709978372,1.05589668,108200.0,108190.0,0.0005164]
[1756709978995,1.05589668,108200.0,108190.0,0.18537636]
[1756709980036,1.05589668,108200.0,108190.0,0.0005164]
[1756709982835,0.3905937,108200.0,108190.0,0.0005164]
[1756709983062,1.05589668,108200.0,108190.0,0.0005164]
[1756709988055,1.38854817,108200.0,108190.0,0.0005164]
[1756709988291,1.05589668,108200.0,108190.0,0.0005164]
[1756709988782,0.2355537,108200.0,108190.0,0.18537636]
[1756709989018,1.05585668,108200.0,108190.0,0.18537636]
[1756709990692,1.38850817,108200.0,108190.0,0.18537636]
[1756709992474,1.38850817,108200.0,108190.0,0.0005164]
[1756709992952,1.38850817,108200.0,108190.0,0.18537636]
[1756709995360,1.38850817,108200.0,108190.0,0.0005164]
[1756709996944,1.38850817,108200.0,108190.0,0.18537636]
[1756709997921,1.38850817,108200.0,108190.0,0.0005164]
[1756710001060,1.38850817,108200.0,108190.0,0.18537636]
[1756710001454,1.38850817,108200.0,108190.0,0.0005164]
[1756710001658,1.38850817,108200.0,108190.0,0.18537636]
[1756710002311,1.38850817,108200.0,108190.0,0.0005164]
[1756710002724,1.23350817,108200.0,108190.0,0.18537636]
[1756710002934,1.38846817,108200.0,108190.0,0.18537636]
[1756710003915,0.3905137,108200.0,108190.0,0.18537636]
[1756710004127,1.38846817,108200.0,108190.0,0.18537636]
[1756710004578,0.8709738,108200.0,108190.0,0.18537636]
[1756710004931,0.7160138,108200.0,108190.0,0.18537636]
[1756710005136,0.002,108200.0,108190.0,0.34033636]
[1756710005356,0.33465149,108200.0,108190.0,0.34033636]
[1756710005563,0.33465149,108200.0,108190.0,0.36810536]
[1756710005564,0.002,108200.0,108190.0,0.36810536]
[1756710005763,0.002,108200.0,108190.0,0.61108537]
[1756710006460,0.33465149,108200.0,108190.0,0.61108537]
[1756710006588,0.33365149,108200.0,108190.0,0.61108537]
[1756710006790,0.33365149,108200.0,108190.0,0.45612537]
[1756710006999,0.33465149,108200.0,108190.0,0.61104537]
[1756710007195,0.33365149,108200.0,108190.0,0.61104537]
[1756710007776,0.33265149,108200.0,108190.0,0.45612537]
[1756710007932,0.33265149,108200.0,108190.0,0.61304537]
[1756710008298,0.33265149,108200.0,108190.0,0.61104537]
[1756710009105,0.66530298,108200.0,108190.0,0.45612537]
[1756710009347,0.70259982,108220.0,108210.0,0.1848258]
[1756710009577,1.03525131,108220.0,108210.0,0.1848258]
[1756710009970,0.36994833,108220.0,108210.0,0.1848258]
[1756710010170,1.03492119,108220.0,108210.0,0.1848258]
[1756710010371,1.48262119,108220.0,108210.0,0.1848258]
[1756710010577,1.48262119,108220.0,108210.0,0.2125918]
[1756710010814,1.48462119,108220.0,108210.0,0.2125918]
[1756710010964,1.48462119,108220.0,108210.0,0.027766]
[1756710011163,1.5796012,108220.0,108210.0,0.027766]
[1756710011547,1.83215863,108220.0,108210.0,0.027766]
[1756710011750,0.99346462,108210.0,108200.0,0.01000631]
[1756710011986,2.15494392,108210.0,108200.0,0.01000631]
[1756710012195,1.70724392,108210.0,108200.0,0.01000631]
[1756710012773,1.73502092,108210.0,108200.0,0.01000631]
[1756710013168,1.73602092,108210.0,108200.0,0.01000631]
[1756710013392,1.73902092,108210.0,108200.0,0.01000631]
[1756710013563,1.89294092,108210.0,108200.0,0.01000631]
[1756710013770,1.88994092,108210.0,108200.0,0.01000631]
[1756710014011,1.89194092,108210.0,108200.0,0.01000631]
[1756710014224,1.89494092,108210.0,108200.0,0.01000631]
[1756710014450,1.74002092,108210.0,108200.0,0.01000631]
[1756710014662,1.89494092,108210.0,108200.0,0.01000631]
[1756710015688,0.89748163,108210.0,108200.0,0.01000631]
[1756710015908,1.56245449,108210.0,108200.0,0.01000631]
[1756710016331,1.89494092,108210.0,108200.0,0.01000631]
[1756710018850,1.56245449,108210.0,108200.0,0.01000631]
[1756710019726,1.56273449,108210.0,108200.0,0.01000631]
[1756710020353,1.55773449,108210.0,108200.0,0.01000631]
[1756710020776,1.56673449,108210.0,108200.0,0.01000631]
[1756710021033,1.56177449,108210.0,108200.0,0.01000631]
[1756710021252,1.55777449,108210.0,108200.0,0.01000631]
[1756710021435,1.56477449,108210.0,108200.0,0.01000631]
[1756710021649,1.56560477,108210.0,108200.0,0.01000631]
[1756710021859,1.56260477,108210.0,108200.0,0.01000631]
[1756710022076,1.40736477,108210.0,108200.0,0.01000631]
[1756710022299,1.54170595,108210.0,108200.0,0.01000631]
[1756710022511,1.56264477,108210.0,108200.0,0.01000631]
[1756710022719,1.06736477,108210.0,108200.0,0.01000631]
[1756710022925,1.20174595,108210.0,108200.0,0.01000631]
[1756710023388,1.20874595,108210.0,108200.0,0.01000631]
[1756710023591,1.22568477,108210.0,108200.0,0.01000631]
[1756710023897,1.22468477,108210.0,108200.0,0.01000631]
[1756710024097,1.22668477,108210.0,108200.0,0.01000631]
[1756710024544,1.22668477,108210.0,108200.0,0.19484919]
[1756710025356,1.07136477,108210.0,108200.0,0.19484919]
[1756710025763,1.22660477,108210.0,108200.0,0.19484919]
[1756710025966,1.22177449,108210.0,108200.0,0.19484919]
[1756710026385,1.21777449,108210.0,108200.0,0.19484919]
[1756710026589,1.21977449,108210.0,108200.0,0.19484919]
[1756710026765,1.22177449,108210.0,108200.0,0.19484919]
[1756710026970,1.21977449,108210.0,108200.0,0.19484919]
[1756710027259,1.21877449,108210.0,108200.0,0.19484919]
[1756710027462,0.38220225,108210.0,108200.0,0.19484919]
[1756710027664,0.33339401,108210.0,108200.0,0.19484919]
[1756710027869,0.33339401,108210.0,108200.0,0.22261519]
[1756710028072,0.00190758,108210.0,108200.0,0.22261519]
[1756710028255,0.00190758,108210.0,108200.0,0.2319735]
[1756710028472,0.33439401,108210.0,108200.0,0.22261519]
[1756710029633,0.33439401,108210.0,108200.0,0.23187758]
[1756710030486,0.33439401,108210.0,108200.0,0.22261519]
[1756710032588,0.33339401,108210.0,108200.0,0.22261519]
[1756710032793,0.33248643,108210.0,108200.0,0.22261519]
[1756710032989,0.33348643,108210.0,108200.0,0.22261519]
[1756710033358,0.34483888,108220.0,108210.0,0.1848258]
[1756710033578,0.69826413,108220.0,108210.0,0.1848258]
[1756710034046,0.69826413,108220.0,108210.0,0.2125918]
[1756710034247,0.51345518,108220.0,108210.0,0.2125918]
[1756710034666,0.51445518,108220.0,108210.0,0.2125918]
[1756710035074,0.49447636,108220.0,108210.0,0.2125918]
[1756710035494,0.16198993,108220.0,108210.0,0.2125918]
[1756710035756,0.49447636,108220.0,108210.0,0.2125918]
[1756710036174,0.49347636,108220.0,108210.0,0.2125918]
[1756710036605,0.49247636,108220.0,108210.0,0.2125918]
[1756710036980,0.49347636,108220.0,108210.0,0.2125918]
[1756710037776,0.49247636,108220.0,108210.0,0.2125918]
[1756710040470,0.15998993,108220.0,108210.0,0.2125918]
[1756710040673,0.49247636,108220.0,108210.0,0.2125918]
[1756710041487,0.33731636,108220.0,108210.0,0.2125918]
[1756710043535,0.00482993,108220.0,108210.0,0.2125918]
[1756710043745,1e-08,108220.0,108210.0,0.2125918]
[1756710044389,1e-08,108220.0,108210.0,0.84557181]
[1756710044596,1e-08,108220.0,108210.0,1.32805824]
[1756710044811,1e-08,108220.0,108210.0,1.15065181]
[1756710045249,1e-08,108220.0,108210.0,0.99557181]
[1756710045462,1e-08,108220.0,108210.0,1.15065181]
[1756710046457,1e-08,108220.0,108210.0,1.15365181]
[1756710047263,1e-08,108220.0,108210.0,1.15565181]
[1756710048297,1e-08,108220.0,108210.0,1.48813824]
[1756710048498,1e-08,108220.0,108210.0,1.68813824]
[1756710050817,1e-08,108220.0,108210.0,1.68809824]
[1756710052972,1e-08,108220.0,108210.0,1.30055882]
[1756710053113,1e-08,108220.0,108210.0,1.78812525]
[1756710055706,1e-08,108220.0,108210.0,2.12061168]
[1756710056052,1e-08,108220.0,108210.0,1.78812525]
[1756710058522,1e-08,108220.0,108210.0,1.30055882]
[1756710058725,1e-08,108220.0,108210.0,1.78800525]
[1756710060362,1e-08,108220.0,108210.0,1.45547882]
[1756710060560,1e-08,108220.0,108210.0,1.78796525]
[1756710061451,1e-08,108220.0,108210.0,1.78804525]
[1756710061980,1e-08,108220.0,108210.0,1.73805824]
[1756710062184,1e-08,108220.0,108210.0,1.78804525]
[1756710065080,1e-08,108220.0,108210.0,1.30055882]
[1756710065312,1e-08,108220.0,108210.0,1.78812525]
[1756710066584,0.03318319,108230.0,108220.0,0.68480871]
[1756710066779,0.03318319,108230.0,108220.0,1.00382872]
[1756710067136,0.03318319,108230.0,108220.0,1.03158372]
[1756710067551,0.03318319,108230.0,108220.0,1.03174372]
[1756710067753,0.03318319,108230.0,108220.0,1.0770041]
[1756710068634,0.03318319,108230.0,108220.0,1.0760041]
[1756710069103,0.03318319,108230.0,108220.0,0.9208041]
[1756710069323,0.03318319,108230.0,108220.0,1.40849053]
[1756710069537,0.03318319,108230.0,108220.0,1.40649053]
[1756710069853,0.03318319,108230.0,108220.0,1.40849053]
[1756710070077,0.03318319,108230.0,108220.0,1.40749053]
[1756710070283,0.03318319,108230.0,108220.0,1.25429053]
[1756710070520,0.03318319,108230.0,108220.0,1.40945053]
[1756710070724,0.03318319,108230.0,108220.0,1.40845053]
[1756710071157,0.03318319,108230.0,108220.0,1.0769641]
[1756710071747,0.03318319,108230.0,108220.0,1.0759641]
[1756710072039,0.03318319,108230.0,108220.0,1.41045053]
[1756710072699,0.03318319,108230.0,108220.0,1.40845053]
[1756710072872,0.03318319,108230.0,108220.0,1.0759641]
[1756710073015,0.03318319,108230.0,108220.0,1.41145053]
[1756710073236,0.03318319,108230.0,108220.0,1.40845053]
[1756710073443,0.03318319,108230.0,108220.0,1.40641053]
[1756710073649,0.03318319,108230.0,108220.0,1.0779241]
[1756710073850,0.03318319,108230.0,108220.0,1.0809241]
[1756710075807,0.03318319,108230.0,108220.0,0.9258041]
[1756710076009,0.36566962,108230.0,108220.0,1.0808841]
[1756710076251,0.36566962,108230.0,108220.0,0.9258041]
[1756710076512,0.36566962,108230.0,108220.0,1.0769241]
[1756710077151,0.03318319,108230.0,108220.0,1.0769241]
[1756710077373,0.03318319,108230.0,108220.0,1.0759241]
[1756710077573,0.03318319,108230.0,108220.0,1.0789241]
[1756710077995,0.03318319,108230.0,108220.0,1.0769241]
[1756710078365,0.03318319,108230.0,108220.0,1.0789241]
[1756710082439,0.03318319,108230.0,108220.0,0.57892411]
[1756710090829,0.03318319,108230.0,108220.0,1.11141054]
[1756710101147,0.03318319,108230.0,108220.0,1.61141054]
[1756710103738,0.03318319,108230.0,108220.0,1.45629054]
[1756710104091,0.03318319,108230.0,108220.0,1.61117054]
[1756710108008,0.03318319,108230.0,108220.0,1.27868411]
[1756710109638,0.03318319,108230.0,108220.0,1.12380411]
[1756710109844,0.03318319,108230.0,108220.0,1.27868411]
[1756710110489,0.03318319,108230.0,108220.0,1.61117054]
[1756710110749,0.03318319,108230.0,108220.0,1.12380411]
[1756710110942,0.36566962,108230.0,108220.0,0.92380411]
[1756710111156,0.36566962,108230.0,108220.0,1.07868411]
[1756710111442,0.03318319,108230.0,108220.0,1.07868411]
[1756710111774,0.03318319,108230.0,108220.0,1.07668411]
[1756710112178,0.03318319,108230.0,108220.0,1.07768411]
[1756710112625,0.03318319,108230.0,108220.0,1.07668411]
[1756710113031,0.03318319,108230.0,108220.0,1.07868411]
[1756710114789,0.03318319,108230.0,108220.0,1.41117054]
[1756710115208,0.03318319,108230.0,108220.0,1.07868411]
[1756710116312,0.03318319,108230.0,108220.0,0.91117054]
[1756710116940,0.03452541,108240.0,108230.0,1.20727807]
[1756710117145,0.03452541,108240.0,108230.0,1.45517808]
[1756710118067,0.03452541,108240.0,108230.0,1.48440648]
[1756710119543,0.03452541,108240.0,108230.0,1.98440648]
[1756710120578,0.03452541,108240.0,108230.0,1.49700005]
[1756710120859,0.03452541,108240.0,108230.0,1.65188005]
[1756710121574,0.03452541,108240.0,108230.0,1.98436648]
[1756710125305,0.03452541,108240.0,108230.0,1.82948648]
[1756710125629,0.03452541,108240.0,108230.0,1.65188005]
[1756710126411,0.03458231,108240.0,108230.0,1.65188005]
[1756710127569,0.03452541,108240.0,108230.0,1.50188005]
[1756710135444,0.03452541,108240.0,108230.0,1.83436648]
[1756710135671,0.03452541,108240.0,108230.0,1.50188005]
[1756710136840,0.07016467,108250.0,108240.0,0.717261]
[1756710137006,0.07016467,108250.0,108240.0,1.03612101]
[1756710137774,0.07016467,108250.0,108240.0,0.73138558]
[1756710138582,0.07016467,108250.0,108240.0,0.73338558]
[1756710138789,0.07016467,108250.0,108240.0,1.23338558]
[1756710139998,0.07016467,108250.0,108240.0,1.23334558]
[1756710140328,0.07016467,108250.0,108240.0,1.23434558]
[1756710140455,0.07016467,108250.0,108240.0,1.07950558]
[1756710140659,0.07016467,108250.0,108240.0,1.23434558]
[1756710142648,0.07016467,108250.0,108240.0,1.07950558]
[1756710142888,0.4026511,108250.0,108240.0,1.03434558]
[1756710143091,0.07016467,108250.0,108240.0,0.80850558]
[1756710143275,0.4026511,108250.0,108240.0,0.80850558]
[1756710143513,0.4026511,108250.0,108240.0,0.96334558]
[1756710143832,0.4026511,108250.0,108240.0,0.96234558]
[1756710144275,0.4026511,108250.0,108240.0,0.96334558]
[1756710144714,0.4026511,108250.0,108240.0,0.96134558]
[1756710145617,0.07016467,108250.0,108240.0,0.96134558]
[1756710146168,0.07016467,108250.0,108240.0,0.96334558]
[1756710146389,0.07016467,108250.0,108240.0,0.96034558]
[1756710146594,0.07016467,108250.0,108240.0,0.96234558]
[1756710147271,0.07016467,108250.0,108240.0,0.96034558]
[1756710147455,0.07016467,108250.0,108240.0,0.96134558]
[1756710148217,0.07016467,108250.0,108240.0,0.46134558]
[1756710149180,0.4026511,108250.0,108240.0,0.46134558]
[1756710149976,0.4026511,108250.0,108240.0,0.46034558]
[1756710150167,0.07016467,108250.0,108240.0,0.46034558]
[1756710150489,0.07016467,108250.0,108240.0,0.46234558]
[1756710151587,0.07016467,108250.0,108240.0,0.46434558]
[1756710152176,0.4026511,108250.0,108240.0,0.46434558]
[1756710153027,0.07016467,108250.0,108240.0,0.46234558]
[1756710153319,0.07016467,108250.0,108240.0,0.46034558]
[1756710153460,0.07016467,108250.0,108240.0,0.66134558]
[1756710153868,0.07016467,108250.0,108240.0,0.66034558]
[1756710154455,0.07016467,108250.0,108240.0,0.66234558]
[1756710154667,0.07016467,108250.0,108240.0,0.66334558]
[1756710155075,0.07016467,108250.0,108240.0,0.66234558]
[1756710155376,0.07016467,108250.0,108240.0,0.66534558]
[1756710165414,0.07016467,108250.0,108240.0,0.51050558]
[1756710165557,0.07016467,108250.0,108240.0,0.66534558]
[1756710168091,0.07016467,108250.0,108240.0,0.66234558]
[1756710168510,0.07016467,108250.0,108240.0,0.66134558]
[1756710169065,0.07016467,108250.0,108240.0,0.66234558]
[1756710171778,0.07016467,108250.0,108240.0,0.66134558]
[1756710172034,0.07016467,108250.0,108240.0,0.66434558]
[1756710172275,0.07016467,108250.0,108240.0,0.66334558]
[1756710172511,0.07016467,108250.0,108240.0,0.66534558]
[1756710174743,0.07016467,108250.0,108240.0,0.99783201]
[1756710175001,0.07016467,108250.0,108240.0,0.66534558]
[1756710178062,0.07016467,108250.0,108240.0,0.99783201]
[1756710178529,0.07016467,108250.0,108240.0,0.66534558]
[1756710179571,0.07016467,108250.0,108240.0,0.51050558]
[1756710179714,0.07016467,108250.0,108240.0,0.66534558]
[1756710180696,0.07016467,108250.0,108240.0,1.77030545]
[1756710180896,1e-08,108250.0,108240.0,1.77030545]
[1756710181342,0.03491851,108260.0,108250.0,1.30723094]
[1756710181343,1e-08,108260.0,108250.0,1.30723094]
[1756710181586,0.03540234,108270.0,108260.0,0.72474043]
[1756710181810,0.03540234,108270.0,108260.0,0.77256044]
[1756710182019,0.03540234,108270.0,108260.0,0.61772044]
[1756710182227,0.03540234,108270.0,108260.0,0.80030644]
[1756710182858,0.03540234,108270.0,108260.0,0.80330644]
[1756710183278,0.03540234,108270.0,108260.0,0.30846644]
[1756710183482,0.36788877,108270.0,108260.0,0.46330644]
[1756710183695,0.36788877,108270.0,108260.0,0.30846644]
[1756710183896,0.36788877,108270.0,108260.0,0.86732643]
[1756710184327,0.36788877,108270.0,108260.0,0.91071822]
[1756710184530,0.36788877,108270.0,108260.0,0.90871822]
[1756710184936,0.03540234,108270.0,108260.0,0.90871822]
[1756710186315,0.03540234,108270.0,108260.0,1.00169823]
[1756710186734,0.03540234,108270.0,108260.0,0.50169823]
[1756710187545,0.03540234,108270.0,108260.0,0.50369823]
[1756710187744,0.03540234,108270.0,108260.0,0.50169823]
[1756710187983,0.03540234,108270.0,108260.0,0.34885823]
[1756710188182,0.03540234,108270.0,108260.0,0.50469823]
[1756710189058,0.03540234,108270.0,108260.0,0.50369823]
[1756710189263,0.03540234,108270.0,108260.0,0.51277085]
[1756710189470,0.03540234,108270.0,108260.0,0.51377085]
[1756710190789,0.03540234,108270.0,108260.0,0.51177085]
[1756710191054,0.10751664,108270.0,108260.0,0.06913779]
[1756710191209,0.02093882,108260.0,108250.0,0.18475698]
[1756710191410,0.35342525,108260.0,108250.0,0.18475698]
[1756710191613,0.53816568,108260.0,108250.0,0.18475698]
[1756710192226,0.35342525,108260.0,108250.0,0.18475698]
[1756710192445,0.53816568,108260.0,108250.0,0.18475698]
[1756710193209,0.53816568,108260.0,108250.0,0.22635233]
[1756710194158,0.53916568,108260.0,108250.0,0.22635233]
[1756710194534,0.35442525,108260.0,108250.0,0.22635233]
[1756710194938,0.02193882,108260.0,108250.0,0.22635233]
[1756710195138,0.35442525,108260.0,108250.0,0.25410533]
[1756710195390,0.33348643,108260.0,108250.0,0.25410533]
[1756710195584,0.36788877,108270.0,108260.0,0.18474043]
[1756710195789,0.38882759,108270.0,108260.0,0.33986043]
[1756710196659,0.39365486,108270.0,108260.0,0.33986043]
[1756710196886,0.2458918,108270.0,108260.0,0.33986043]
[1756710197201,0.39365486,108270.0,108260.0,0.33986043]
[1756710197565,0.57937823,108270.0,108260.0,0.33986043]
[1756710197775,0.39465486,108270.0,108260.0,0.33986043]
[1756710198589,0.57937823,108270.0,108260.0,0.33986043]
[1756710199716,0.57937823,108270.0,108260.0,0.15512]
[1756710199893,0.91186466,108270.0,108250.0,0.70212534]
[1756710200095,0.33248643,108260.0,108250.0,0.34708534]
[1756710200295,0.53816568,108260.0,108250.0,0.40914533]
[1756710200525,0.69320568,108260.0,108250.0,0.40914533]
[1756710202096,0.69320568,108260.0,108250.0,0.06934835]
[1756710202277,0.69320568,108260.0,108250.0,0.25410585]
[1756710202445,0.69320568,108260.0,108250.0,0.22635285]
[1756710204213,0.36071925,108260.0,108250.0,0.22635285]
[1756710204407,0.69320568,108260.0,108250.0,0.22635285]
[1756710205098,0.17597882,108260.0,108250.0,0.22635285]
[1756710205339,0.35342525,108260.0,108250.0,0.22635285]
[1756710208625,0.53816568,108260.0,108250.0,0.22635285]
[1756710209029,0.69324568,108260.0,108250.0,0.22635285]
[1756710210295,0.53816568,108260.0,108250.0,0.22635285]
[1756710210502,0.69320568,108260.0,108250.0,0.22635285]
[1756710215756,0.53816568,108260.0,108250.0,0.22635285]
[1756710215983,0.69312568,108260.0,108250.0,0.22635285]
[1756710216165,0.35342525,108260.0,108250.0,0.22635285]
[1756710216383,0.50834525,108260.0,108250.0,0.22635285]
[1756710216776,0.69308568,108260.0,108250.0,0.22635285]
[1756710218061,0.69308568,108260.0,108250.0,0.04159535]
[1756710218263,0.69308568,108260.0,108250.0,0.22635285]
[1756710218467,0.69308568,108260.0,108250.0,0.1847575]
[1756710218646,0.69308568,108260.0,108240.0,0.38666882]
[1756710218795,0.33248643,108250.0,108240.0,0.38666882]
[1756710220826,0.33248643,108250.0,108240.0,0.38966882]
[1756710221761,0.33248643,108250.0,108240.0,0.43132212]
[1756710230329,0.35342525,108250.0,108240.0,0.08242886]
[1756710230548,0.53818275,108250.0,108240.0,0.05467586]
[1756710230733,0.56594075,108250.0,108240.0,0.05467586]
[1756710231135,0.56594075,108250.0,108240.0,0.05267586]
[1756710232004,0.56594075,108250.0,108240.0,0.05167586]
[1756710233565,0.56694075,108250.0,108240.0,0.05167586]
[1756710234540,0.72198075,108250.0,108240.0,0.05167586]
[1756710235197,0.72098075,108250.0,108240.0,0.05167586]
[1756710235555,0.72198075,108250.0,108240.0,0.05167586]
[1756710240800,0.56694075,108250.0,108240.0,0.23645043]
[1756710241001,0.72186075,108250.0,108240.0,0.23645043]
[1756710241516,0.69410275,108250.0,108240.0,0.23645043]
[1756710241789,0.69310275,108250.0,108240.0,0.05167586]
[1756710241996,0.69314275,108250.0,108240.0,0.19479713]
[1756710242177,0.69414275,108250.0,108240.0,0.19479713]
[1756710242561,0.69314275,108250.0,108240.0,0.19479713]
[1756710242921,0.69414275,108250.0,108240.0,0.19479713]
[1756710243882,0.69414275,108250.0,108240.0,0.01002256]
[1756710245468,1.56730919,108250.0,108240.0,0.01002256]
[1756710246046,1.45960919,108250.0,108240.0,0.01002256]
[1756710246475,1.48737319,108250.0,108240.0,0.01002256]
[1756710247105,1.49220235,108250.0,108240.0,0.01002256]
[1756710247311,0.82738949,108250.0,108240.0,0.01002256]
[1756710247512,1.49236235,108250.0,108240.0,0.01002256]
[1756710250863,1.49252235,108250.0,108240.0,0.01002256]
[1756710251769,1.00475592,108250.0,108240.0,0.19479713]
[1756710251972,1.1391371,108250.0,108240.0,0.01002256]
[1756710252639,1.16007592,108250.0,108240.0,0.01002256]
[1756710252822,1.16023592,108250.0,108240.0,0.19479713]
[1756710253195,0.33831559,108250.0,108240.0,0.19479713]
[1756710253411,0.00582916,108250.0,108240.0,0.19479713]
[1756710253566,0.51477441,108250.0,108240.0,0.19479713]
[1756710253768,0.49383559,108250.0,108240.0,0.19479713]
[1756710253968,0.51477441,108250.0,108240.0,0.19479713]
[1756710254226,0.35825441,108250.0,108240.0,0.19479713]
[1756710254624,0.51481441,108250.0,108240.0,0.19479713]
[1756710255072,0.18132798,108250.0,108240.0,0.19479713]
[1756710255449,0.18232798,108250.0,108240.0,0.19479713]
[1756710255668,0.00582916,108250.0,108240.0,0.28777714]
[1756710256089,0.001,108250.0,108240.0,0.28777714]
[1756710256863,0.59556307,108270.0,108260.0,0.18474043]
[1756710257074,0.61650189,108270.0,108260.0,0.18474043]
[1756710257243,0.59556307,108270.0,108260.0,0.18474043]
[1756710257582,0.61650189,108270.0,108260.0,0.18474043]
[1756710257805,0.46094189,108270.0,108260.0,0.18474043]
[1756710258012,0.61666189,108270.0,108260.0,0.18474043]
[1756710258225,0.61766189,108270.0,108260.0,0.18474043]
[1756710258647,0.61666189,108270.0,108260.0,0.18474043]
[1756710258854,0.61766189,108270.0,108260.0,0.18474043]
[1756710260150,0.61666189,108270.0,108260.0,0.18474043]
[1756710260571,0.61766189,108270.0,108260.0,0.18474043]
[1756710261629,0.61758189,108270.0,108260.0,0.18474043]
[1756710263412,0.21298116,108270.0,108260.0,0.18474043]
[1756710263613,0.54546759,108270.0,108260.0,0.18474043]
[1756710264409,0.38982759,108270.0,108260.0,0.18474043]
[1756710264722,0.54538759,108270.0,108260.0,0.18474043]
[1756710265657,0.73011096,108270.0,108260.0,0.18474043]
[1756710266094,0.38982759,108270.0,108260.0,0.18474043]
[1756710266291,0.54534759,108270.0,108260.0,0.18474043]
[1756710269366,0.54534759,108270.0,108260.0,0.22655246]
[1756710269595,0.73007096,108270.0,108260.0,0.22655246]
[1756710270904,0.54534759,108270.0,108260.0,0.22655246]
[1756710272839,0.38982759,108270.0,108260.0,0.22655246]
[1756710272987,0.54518759,108270.0,108260.0,0.22655246]
[1756710277206,0.05734116,108270.0,108260.0,0.22655246]
[1756710277456,0.21258116,108270.0,108260.0,0.22655246]
[1756710277655,0.54506759,108270.0,108260.0,0.22655246]
[1756710279898,0.21258116,108270.0,108260.0,0.22655246]
[1756710280133,0.54506759,108270.0,108260.0,0.22655246]
[1756710282531,0.54510759,108270.0,108260.0,0.22655246]
[1756710284343,0.38982759,108270.0,108260.0,0.22655246]
[1756710284729,0.03640234,108270.0,108260.0,0.31953247]
[1756710286070,0.03540234,108270.0,108260.0,0.31953247]
[1756710286464,0.03640234,108270.0,108260.0,0.31953247]
[1756710286669,0.03640234,108270.0,108260.0,0.32871189]
[1756710286828,0.03540234,108270.0,108260.0,0.32871189]
[1756710288963,0.03540234,108270.0,108260.0,0.47871189]
[1756710289751,0.03540234,108270.0,108260.0,0.63399189]
[1756710292628,0.36788877,108270.0,108260.0,0.63399189]
[1756710293033,0.36788877,108270.0,108260.0,0.38573188]
[1756710293238,0.54406759,108270.0,108260.0,0.22655246]
[1756710293600,1.06127739,108270.0,108260.0,0.18474043]
[1756710294435,0.87655402,108270.0,108260.0,0.18474043]
[1756710294642,0.87755402,108270.0,108260.0,0.18474043]
[1756710294814,1.06227739,108270.0,108260.0,0.18474043]
[1756710295020,1.06127739,108270.0,108260.0,0.18474043]
[1756710296400,0.87755402,108270.0,108260.0,0.18474043]